[Event "SUNWAY"]
[Date "2016.12.20"]
[Round "6.13"]
[White "Garriga Cazorla, Pere"]
[Black "Petrov, Nikita"]
[Result "0-1"]
[WhiteElo "2386"]
[BlackElo "2512"]
[ECO "E50"]
[WhiteFed "ESP"]
[BlackFed "RUS"]
[FCGameId "-1459577454"]
[TimeControl "5400+30"]

1. d4 {[%clk 1:30:57]} Nf6 {[%clk 1:30:50]} 2. c4 {[%clk 1:31:20]} e6  {[%clk 1:31:06]} 3. Nc3 {[%clk 1:31:23]} Bb4 {[%clk 1:31:29]} 4. Nf3  {[%clk 1:31:33]} O-O {[%clk 1:30:44]} 5. e3 {[%clk 1:31:41]} c5 6. Bd3  {[%clk 1:31:12]} b6 {[%clk 1:28:49]} 7. O-O {[%clk 1:30:24]} Bb7  {[%clk 1:29:25]} 8. Na4 {[%clk 1:29:14]} cxd4 9. exd4 {[%clk 1:29:15]} Re8  {[%clk 1:29:40]} 10. a3 {[%clk 1:26:01]} Bf8 {[%clk 1:29:55]} 11. Bg5 h6  {[%clk 1:16:14]} 12. Bh4 {[%clk 1:20:54]} Bxf3 {[%clk 1:10:20]} 13. Qxf3  {[%clk 1:11:22]} Nc6 {[%clk 1:10:42]} 14. Qe3 {[%clk 1:03:52]} Be7  {[%clk 1:02:52]} 15. Bg3 {[%clk 0:55:49]} Nh5 16. Rfd1 {[%clk 0:48:54]} Nxg3  {[%clk 0:41:48]} 17. hxg3 {[%clk 0:33:49]} Bg5 18. Qe4 f5 {[%clk 0:38:39]} 19.  Qe1 {[%clk 0:34:12]} Nxd4 {[%clk 0:37:08]} 20. Be4 {[%clk 0:33:58]} fxe4 21.  Rxd4 {[%clk 0:34:18]} e3 {[%clk 0:36:22]} 22. fxe3 {[%clk 0:26:39]} Bf6 23. Rd3  Be5 {[%clk 0:31:38]} 24. Rad1 {[%clk 0:22:30]} Qg5 {[%clk 0:29:34]} 25. e4  {[%clk 0:22:26]} Rf8 {[%clk 0:26:49]} 26. Qe3 {[%clk 0:19:23]} Qg4  {[%clk 0:25:02]} 27. c5 b5 {[%clk 0:20:04]} 28. Nc3 {[%clk 0:17:06]} h5 29. b4  {[%clk 0:14:46]} a5 {[%clk 0:17:55]} 30. bxa5 {[%clk 0:06:48]} Rxa5  {[%clk 0:16:50]} 31. Ne2 {[%clk 0:06:58]} Ra4 {[%clk 0:13:39]} 32. Nd4  {[%clk 0:06:14]} h4 {[%clk 0:11:24]} 33. gxh4 {[%clk 0:04:58]} Rxd4  {[%clk 0:10:57]} 34. Rxd4 {[%clk 0:04:28]} Qxh4 {[%clk 0:11:20]} 35. g3  {[%clk 0:04:17]} Bxg3 {[%clk 0:11:37]} 36. R4d2 {[%clk 0:04:37]} Qg4  {[%clk 0:10:08]} 37. Kh1 {[%clk 0:03:39]} Qh3+ {[%clk 0:10:17]} 0-1

[Event "SUNWAY"]
[Date "2016.12.20"]
[Round "6.14"]
[White "Liang, Awonder"]
[Black "Lorenzo De La Riva, Lazaro"]
[Result "1-0"]
[WhiteElo "2495"]
[BlackElo "2373"]
[ECO "B92"]
[WhiteFed "USA"]
[BlackFed "ESP"]
[FCGameId "-787339744"]
[TimeControl "5400+30"]

1. e4 c5 {[%clk 1:30:29]} 2. Nf3 {[%clk 1:31:21]} d6 {[%clk 1:30:53]} 3. d4  {[%clk 1:31:36]} cxd4 {[%clk 1:31:17]} 4. Nxd4 {[%clk 1:32:02]} Nf6  {[%clk 1:31:42]} 5. Nc3 {[%clk 1:32:24]} a6 {[%clk 1:31:54]} 6. Be2  {[%clk 1:31:32]} e5 {[%clk 1:31:18]} 7. Nb3 {[%clk 1:31:55]} Be7  {[%clk 1:31:30]} 8. Be3 {[%clk 1:31:58]} Be6 {[%clk 1:31:17]} 9. Nd5  {[%clk 1:32:06]} Nbd7 {[%clk 1:30:06]} 10. Qd3 {[%clk 1:32:25]} O-O  {[%clk 1:29:36]} 11. O-O {[%clk 1:32:16]} Bxd5 {[%clk 1:29:16]} 12. exd5  {[%clk 1:32:36]} Nb6 {[%clk 1:28:12]} 13. c4 {[%clk 1:26:45]} a5  {[%clk 1:09:26]} 14. f4 Nfd7 15. a4 {[%clk 1:12:22]} Bf6 {[%clk 1:01:56]} 16. f5  e4 {[%clk 0:56:15]} 17. Qd2 {[%clk 0:55:00]} Ne5 {[%clk 0:40:05]} 18. Nxa5  {[%clk 0:46:55]} Qc7 19. c5 {[%clk 0:37:05]} dxc5 {[%clk 0:27:24]} 20. Rfc1 Rfd8  {[%clk 0:18:50]} 21. Rxc5 {[%clk 0:34:46]} Qd7 {[%clk 0:19:12]} 22. d6  {[%clk 0:31:19]} Rxa5 {[%clk 0:10:40]} 23. Qxa5 {[%clk 0:30:38]} Qxd6  {[%clk 0:11:05]} 24. Rxe5 Bxe5 {[%clk 0:10:05]} 25. Qxb6 {[%clk 0:28:04]} 1-0

[Event "SUNWAY"]
[Date "2016.12.20"]
[Round "6.15"]
[White "Golubov, Saveliy"]
[Black "Alonso Bouza, Julio Javier"]
[Result "1/2-1/2"]
[WhiteElo "2490"]
[BlackElo "2365"]
[ECO "A48"]
[WhiteFed "RUS"]
[BlackFed "CUB"]
[FCGameId "1171344773"]
[TimeControl "5400+30"]

1. d4 Nf6 2. Nf3 g6 3. Bg5 Bg7 4. Nbd2 d6 5. e4 Nbd7 6. Bc4 e5 7. c3 a6 8. O-O  O-O 9. a4 b6 10. dxe5 dxe5 11. Bd5 Rb8 12. Bc6 Qe7 13. Bxd7 Bxd7 14. Nc4 Bg4 15.  Ncxe5 Bxf3 16. Nxf3 Qxe4 17. Re1 Qb7 18. Qd4 Nh5 19. Qe3 Qc6 20. Nd4 Qd7 21. Qf3  Bxd4 22. cxd4 f6 23. Bh6 Rf7 24. d5 Ng7 25. Bd2 Rd8 26. Bc3 h5 27. a5 b5 28.  Rad1 Kh7 29. Bb4 Qg4 30. Qxg4 hxg4 31. Re7 Kg8 32. Rxf7 Kxf7 33. Rc1 Ne8 34. Rc6  Rxd5 35. Kf1 Rd1+ 36. Ke2 Rd4 37. Bc5 Re4+ 38. Be3 Re6 39. Rc1 c6 40. Kd3 Nc7  41. Kd4 Nd5 42. Kd3 f5 43. Bd2 Ke7 44. f3 gxf3 45. gxf3 Kd6 46. b4 Ke7 47. h4  Rd6 48. Kc2 Re6 49. Kd3 Rd6 50. Kc2 Re6 1/2-1/2

[Event "SUNWAY"]
[Date "2016.12.20"]
[Round "6.16"]
[White "Villegas, Pierre"]
[Black "Santos Ruiz, Miguel"]
[Result "0-1"]
[WhiteElo "2374"]
[BlackElo "2484"]
[ECO "E54"]
[WhiteFed "MNC"]
[BlackFed "ESP"]
[FCGameId "-623495179"]
[TimeControl "5400+30"]

1. d4 {[%clk 1:30:57]} Nf6 {[%clk 1:30:53]} 2. c4 {[%clk 1:31:20]} e6  {[%clk 1:31:19]} 3. Nc3 {[%clk 1:31:44]} Bb4 {[%clk 1:31:44]} 4. e3  {[%clk 1:31:54]} O-O {[%clk 1:32:07]} 5. Bd3 {[%clk 1:32:08]} d5  {[%clk 1:32:30]} 6. Nf3 {[%clk 1:32:24]} dxc4 {[%clk 1:32:50]} 7. Bxc4  {[%clk 1:32:45]} c5 {[%clk 1:33:16]} 8. O-O {[%clk 1:32:06]} Nc6  {[%clk 1:33:39]} 9. a3 {[%clk 1:31:49]} Ba5 {[%clk 1:32:54]} 10. Qd3  {[%clk 1:30:12]} a6 {[%clk 1:25:15]} 11. Rd1 {[%clk 1:23:41]} b5  {[%clk 1:23:36]} 12. Ba2 {[%clk 1:24:02]} c4 {[%clk 1:21:00]} 13. Qe2  {[%clk 1:22:38]} Qe8 {[%clk 1:14:53]} 14. Bb1 {[%clk 1:16:13]} e5  {[%clk 1:07:05]} 15. d5 {[%clk 1:02:12]} Bxc3 {[%clk 1:01:24]} 16. bxc3  {[%clk 1:02:12]} e4 {[%clk 1:01:46]} 17. dxc6 {[%clk 0:57:24]} exf3  {[%clk 1:00:01]} 18. gxf3 {[%clk 0:57:07]} Qxc6 {[%clk 1:00:08]} 19. e4  {[%clk 0:52:02]} Nh5 {[%clk 0:55:57]} 20. f4 {[%clk 0:44:24]} Qg6+  {[%clk 0:52:49]} 21. Kh1 {[%clk 0:44:20]} f5 {[%clk 0:52:58]} 22. Rg1  {[%clk 0:40:41]} Qh6 {[%clk 0:43:50]} 23. Rg5 {[%clk 0:38:08]} Nf6  {[%clk 0:44:03]} 24. e5 {[%clk 0:32:01]} Bb7+ {[%clk 0:42:45]} 25. f3  {[%clk 0:31:53]} Ng4 {[%clk 0:42:32]} 26. Kg1 {[%clk 0:27:20]} Bxf3  {[%clk 0:35:54]} 27. Qxf3 {[%clk 0:27:34]} Qxh2+ {[%clk 0:36:21]} 28. Kf1  {[%clk 0:28:01]} Rad8 {[%clk 0:36:46]} 29. Ra2 {[%clk 0:27:59]} Rd1+  {[%clk 0:36:12]} 30. Qxd1 {[%clk 0:28:19]} Qh1+ {[%clk 0:36:40]} 31. Ke2  {[%clk 0:28:36]} Qg2+ {[%clk 0:37:06]} 0-1

[Event "SUNWAY"]
[Date "2016.12.20"]
[Round "6.17"]
[White "Garcia Ramos, Daniel"]
[Black "Romanishin, Oleg M"]
[Result "1/2-1/2"]
[WhiteElo "2268"]
[BlackElo "2463"]
[ECO "C55"]
[WhiteFed "ESP"]
[BlackFed "UKR"]
[FCGameId "229748255"]
[TimeControl "5400+30"]

1. e4 e5 2. Nf3 Nc6 3. Bc4 Nf6 4. d3 Be7 5. O-O O-O 6. h3 d6 7. a3 Na5 8. Ba2  Be6 9. c4 c5 10. Nc3 Nc6 11. Nd5 Nd7 12. g4 Re8 13. Kh2 Nf8 14. Ng1 Nd4 15. Ne2  Bxd5 16. exd5 Nxe2 17. Qxe2 Ng6 18. b4 b6 19. Bb3 Bg5 20. Be3 Bf4+ 21. Kh1 Rf8  22. Bc2 Qg5 23. Rg1 Rae8 24. Qf3 h6 25. Qe4 Qh4 26. Qg2 Rc8 27. b5 Rce8 28. a4  Re7 29. a5 Qg5 30. Qe4 Qh4 31. Qg2 Qg5 32. Qe4 Qh4 33. Qg2 1/2-1/2

[Event "SUNWAY"]
[Date "2016.12.19"]
[Round "5.1"]
[White "Granda Zuniga, Julio E"]
[Black "Ivanisevic, Ivan"]
[Result "1/2-1/2"]
[WhiteElo "2646"]
[BlackElo "2648"]
[ECO "D94"]
[WhiteFed "PER"]
[BlackFed "SRB"]
[FCGameId "552377716"]
[TimeControl "5400+30"]

1. Nf3 {[%clk 1:30:54]} d5 {[%clk 1:28:42]} 2. d4 {[%clk 1:30:46]} Nf6  {[%clk 1:28:53]} 3. e3 {[%clk 1:29:31]} g6 {[%clk 1:26:53]} 4. c4  {[%clk 1:29:25]} Bg7 {[%clk 1:27:17]} 5. Nc3 {[%clk 1:29:15]} O-O  {[%clk 1:27:29]} 6. Bd2 {[%clk 1:29:24]} e6 {[%clk 1:21:51]} 7. Rc1  {[%clk 1:19:37]} b6 {[%clk 1:17:54]} 8. Be2 {[%clk 1:15:09]} Bb7  {[%clk 1:14:00]} 9. O-O {[%clk 1:14:09]} Nbd7 {[%clk 1:13:16]} 10. b4  {[%clk 1:01:11]} dxc4 {[%clk 1:08:46]} 11. Bxc4 {[%clk 0:58:13]} c5  {[%clk 1:09:06]} 12. dxc5 {[%clk 0:49:19]} bxc5 {[%clk 1:09:26]} 13. Na4  {[%clk 0:49:11]} cxb4 {[%clk 0:47:09]} 14. Bxb4 {[%clk 0:49:15]} Re8  {[%clk 0:47:31]} 15. Nc5 {[%clk 0:37:08]} Nxc5 {[%clk 0:45:21]} 16. Bxc5  {[%clk 0:37:26]} Ne4 {[%clk 0:43:51]} 17. Qxd8 {[%clk 0:17:17]} Rexd8  {[%clk 0:43:55]} 18. Bd4 {[%clk 0:17:26]} Bxd4 {[%clk 0:42:54]} 19. Nxd4  {[%clk 0:17:53]} Nd2 {[%clk 0:42:27]} 20. Rfe1 {[%clk 0:18:19]} e5  {[%clk 0:38:36]} 21. Nb3 {[%clk 0:18:24]} Nxc4 {[%clk 0:35:39]} 1/2-1/2

[Event "SUNWAY"]
[Date "2016.12.19"]
[Round "5.2"]
[White "Sasikiran, Krishnan"]
[Black "Esplugas Esteve, Vicenc"]
[Result "1/2-1/2"]
[WhiteElo "2661"]
[BlackElo "2280"]
[ECO "E06"]
[WhiteFed "IND"]
[BlackFed "ESP"]
[FCGameId "1129759172"]
[TimeControl "5400+30"]

1. d4 {[%clk 1:30:56]} e6 {[%clk 1:30:57]} 2. Nf3 {[%clk 1:31:08]} Nf6  {[%clk 1:31:08]} 3. c4 {[%clk 1:31:23]} d5 {[%clk 1:30:53]} 4. g3  {[%clk 1:30:06]} Be7 {[%clk 1:30:07]} 5. Bg2 {[%clk 1:30:14]} O-O  {[%clk 1:30:32]} 6. O-O {[%clk 1:30:12]} dxc4 {[%clk 1:29:58]} 7. Qc2  {[%clk 1:29:52]} a6 {[%clk 1:30:16]} 8. Qxc4 {[%clk 1:26:01]} b5  {[%clk 1:30:16]} 9. Qc2 {[%clk 1:26:21]} Bb7 {[%clk 1:30:22]} 10. Bd2  {[%clk 1:26:28]} Be4 {[%clk 1:25:15]} 11. Qc1 {[%clk 1:24:17]} Qc8  {[%clk 1:21:58]} 12. Bg5 {[%clk 1:18:24]} Nbd7 {[%clk 1:12:31]} 13. Nbd2  {[%clk 1:08:21]} Bb7 14. Nb3 {[%clk 1:06:58]} h6 {[%clk 1:03:26]} 15. Bxf6  {[%clk 1:04:26]} Bxf6 {[%clk 1:03:35]} 16. Qc2 {[%clk 1:01:55]} Ra7  {[%clk 0:54:30]} 17. Rfc1 {[%clk 0:52:28]} Qa8 {[%clk 0:50:08]} 18. Ne1  {[%clk 0:47:23]} Bxg2 {[%clk 0:49:48]} 19. Nxg2 {[%clk 0:47:44]} a5  {[%clk 0:45:44]} 20. Ne1 {[%clk 0:40:47]} e5 {[%clk 0:38:19]} 21. Qf5  {[%clk 0:31:59]} a4 {[%clk 0:30:10]} 22. Nd2 {[%clk 0:27:33]} Rd8  {[%clk 0:28:26]} 23. Nd3 {[%clk 0:23:24]} g6 {[%clk 0:26:28]} 24. Qf3  {[%clk 0:22:13]} 1/2-1/2

[Event "SUNWAY"]
[Date "2016.12.19"]
[Round "5.3"]
[White "Lopez Martinez, Josep Manuel"]
[Black "Romanov, Evgeny"]
[Result "0-1"]
[WhiteElo "2552"]
[BlackElo "2622"]
[ECO "C84"]
[WhiteFed "ESP"]
[BlackFed "RUS"]
[FCGameId "68012248"]
[TimeControl "5400+30"]

1. e4 e5 2. Nf3 Nc6 3. Bb5 a6 4. Ba4 Nf6 5. O-O Be7 6. d3 d6 7. c3 O-O 8. Re1  Re8 9. Nbd2 b5 10. Bb3 Na5 11. Bc2 c5 12. Nf1 Nc6 13. Bg5 Nd7 14. Bxe7 Qxe7 15.  Ne3 Nb6 16. d4 h6 17. dxc5 dxc5 18. a4 Be6 19. Nf5 Qf8 20. Qe2 Nc4 21. Nd2 g6  22. Nxc4 Bxc4 23. Qg4 h5 24. Qg3 Red8 25. Ne3 Kg7 26. Bd1 Kh7 27. Nxc4 bxc4 28.  Be2 Na5 29. Qxe5 Rab8 30. Qc7 Nb3 31. Rad1 Nd2 32. Qf4 Rxb2 33. e5 Kg8 34. Qg5  Rd5 35. Bxc4 Ne4 36. Qf4 Rxd1 37. Rxd1 Nxc3 38. Re1 Rb4 39. e6 Ne2+ 0-1

[Event "SUNWAY"]
[Date "2016.12.19"]
[Round "5.4"]
[White "Postny, Evgeny"]
[Black "Shyam, Sundar M."]
[Result "0-1"]
[WhiteElo "2620"]
[BlackElo "2532"]
[ECO "E04"]
[WhiteFed "ISR"]
[BlackFed "IND"]
[FCGameId "-1637372837"]
[TimeControl "5400+30"]

1. d4 {[%clk 1:28:53]} Nf6 {[%clk 1:30:39]} 2. c4 {[%clk 1:29:16]} e6  {[%clk 1:31:02]} 3. Nf3 {[%clk 1:29:38]} d5 {[%clk 1:31:25]} 4. g3  {[%clk 1:30:01]} dxc4 {[%clk 1:31:47]} 5. Bg2 {[%clk 1:30:24]} Bb4+  {[%clk 1:32:13]} 6. Bd2 {[%clk 1:30:37]} a5 {[%clk 1:32:39]} 7. Qc2  {[%clk 1:31:00]} Bxd2+ {[%clk 1:33:03]} 8. Qxd2 {[%clk 1:30:57]} c6  {[%clk 1:33:26]} 9. a4 {[%clk 1:30:55]} Ne4 {[%clk 1:33:46]} 10. Qf4  {[%clk 1:30:14]} Qb6 {[%clk 1:34:11]} 11. O-O {[%clk 1:14:51]} Qxb2  {[%clk 1:34:15]} 12. Ne5 {[%clk 1:11:07]} O-O {[%clk 1:22:35]} 13. Na3  {[%clk 1:10:16]} Nc3 {[%clk 1:18:01]} 14. Qe3 Nxe2+ {[%clk 0:48:08]} 15. Kh1  {[%clk 1:09:21]} Nc3 {[%clk 0:48:37]} 16. Rfc1 {[%clk 0:47:54]} Nd5  {[%clk 0:48:43]} 17. Bxd5 {[%clk 0:48:08]} exd5 {[%clk 0:49:10]} 18. Rab1  {[%clk 0:42:20]} Qb4 {[%clk 0:49:35]} 19. Rxb4 {[%clk 0:42:20]} axb4  {[%clk 0:50:03]} 20. Naxc4 {[%clk 0:42:45]} dxc4 {[%clk 0:50:27]} 21. Nxc4  {[%clk 0:43:09]} Be6 {[%clk 0:48:11]} 22. Nb6 {[%clk 0:36:31]} Ra5 23. d5  {[%clk 0:25:42]} cxd5 {[%clk 0:31:25]} 24. Rc7 {[%clk 0:12:20]} d4  {[%clk 0:20:20]} 25. Qxd4 {[%clk 0:12:22]} Nc6 {[%clk 0:20:42]} 26. Rxc6  {[%clk 0:05:03]} bxc6 {[%clk 0:21:03]} 27. Qxb4 {[%clk 0:05:28]} Re5  {[%clk 0:20:56]} 28. h4 {[%clk 0:05:03]} h5 {[%clk 0:15:55]} 29. Qd4  {[%clk 0:04:13]} Re1+ {[%clk 0:11:17]} 30. Kg2 {[%clk 0:04:36]} Bf5  {[%clk 0:10:44]} 31. Nd7 {[%clk 0:01:02]} Rfe8 {[%clk 0:07:27]} 32. Nc5  {[%clk 0:01:26]} Bg4 {[%clk 0:03:24]} 33. a5 {[%clk 0:00:59]} Rd1  {[%clk 0:03:47]} 34. Qb2 {[%clk 0:00:33]} Ree1 {[%clk 0:03:34]} 35. f3  {[%clk 0:00:57]} Rg1+ {[%clk 0:03:49]} 36. Kf2 {[%clk 0:01:22]} Rgf1+  {[%clk 0:02:41]} 37. Ke2 {[%clk 0:01:44]} Rfe1+ {[%clk 0:01:32]} 38. Kf2  {[%clk 0:02:11]} Rf1+ {[%clk 0:01:59]} 39. Ke2 {[%clk 0:02:40]} Rb1  {[%clk 0:00:54]} 40. Qc2 {[%clk 0:30:34]} Rbe1+ {[%clk 0:30:34]} 41. Kd3  {[%clk 0:30:53]} Bf5+ {[%clk 0:30:34]} 42. Kd4 0-1

[Event "SUNWAY"]
[Date "2016.12.19"]
[Round "5.5"]
[White "Gu, Xiaobing"]
[Black "Van Foreest, Jorden"]
[Result "1/2-1/2"]
[WhiteElo "2324"]
[BlackElo "2605"]
[ECO "B07"]
[WhiteFed "CHN"]
[BlackFed "NED"]
[FCGameId "-138818479"]
[TimeControl "5400+30"]

1. e4 {[%clk 1:30:55]} d6 {[%clk 1:27:51]} 2. d4 {[%clk 1:31:18]} Nf6  {[%clk 1:28:17]} 3. Nc3 {[%clk 1:31:40]} e5 {[%clk 1:28:43]} 4. dxe5 dxe5  {[%clk 1:29:07]} 5. Qxd8+ {[%clk 1:30:15]} Kxd8 {[%clk 1:29:30]} 6. Bc4  {[%clk 1:30:12]} Ke8 {[%clk 1:29:41]} 7. Nd5 {[%clk 1:30:01]} Nxd5  {[%clk 1:29:05]} 8. Bxd5 {[%clk 1:29:59]} Bd6 {[%clk 1:25:23]} 9. Be3  {[%clk 1:27:26]} Nd7 {[%clk 1:22:10]} 10. f3 {[%clk 1:26:33]} Ke7  {[%clk 1:18:21]} 11. O-O-O {[%clk 1:26:17]} Bc5 {[%clk 1:18:12]} 12. Bxc5+  {[%clk 1:19:06]} Nxc5 {[%clk 1:18:35]} 13. a3 {[%clk 1:18:59]} c6  {[%clk 1:16:39]} 14. Ba2 {[%clk 1:19:04]} a5 {[%clk 1:15:22]} 15. Ne2  {[%clk 1:18:27]} h5 {[%clk 1:08:02]} 16. Rd2 {[%clk 1:15:47]} h4  {[%clk 1:08:23]} 17. Rhd1 {[%clk 1:15:37]} a4 {[%clk 0:56:46]} 18. Kb1  {[%clk 1:10:41]} g5 {[%clk 0:37:45]} 19. h3 {[%clk 1:05:50]} Be6  {[%clk 0:35:17]} 20. Bxe6 {[%clk 1:05:39]} Kxe6 {[%clk 0:35:38]} 21. Nc1  {[%clk 1:04:40]} Kf6 {[%clk 0:35:57]} 22. Nd3 {[%clk 0:57:20]} Nxd3  {[%clk 0:31:56]} 23. Rxd3 {[%clk 0:57:41]} Rhe8 {[%clk 0:32:18]} 1/2-1/2

[Event "SUNWAY"]
[Date "2016.12.19"]
[Round "5.6"]
[White "Kamsky, Gata"]
[Black "Garriga Cazorla, Pere"]
[Result "1-0"]
[WhiteElo "2661"]
[BlackElo "2386"]
[ECO "A45"]
[WhiteFed "USA"]
[BlackFed "ESP"]
[FCGameId "-243494463"]
[TimeControl "5400+30"]

1. d4 {[%clk 1:30:53]} Nf6 {[%clk 1:30:47]} 2. Bf4 {[%clk 1:31:16]} e6 3. e3  {[%clk 1:31:24]} c5 {[%clk 1:30:17]} 4. Nd2 {[%clk 1:30:45]} Be7  {[%clk 1:27:39]} 5. c3 {[%clk 1:30:48]} Nc6 {[%clk 1:22:24]} 6. Ngf3  {[%clk 1:30:49]} d5 {[%clk 1:20:32]} 7. Ne5 {[%clk 1:27:28]} Bd6  {[%clk 1:09:30]} 8. Qa4 {[%clk 1:22:07]} Qc7 {[%clk 0:57:09]} 9. Nxc6  {[%clk 1:22:25]} bxc6 {[%clk 0:57:20]} 10. Bxd6 {[%clk 1:22:44]} Qxd6  {[%clk 0:54:36]} 11. Qa3 {[%clk 1:23:11]} O-O {[%clk 0:50:25]} 12. Nb3  {[%clk 1:13:05]} a5 {[%clk 0:47:50]} 13. Nxc5 {[%clk 1:12:55]} e5  {[%clk 0:36:34]} 14. Be2 {[%clk 1:12:42]} Bf5 {[%clk 0:32:10]} 15. O-O  {[%clk 1:11:05]} Rfe8 {[%clk 0:25:18]} 16. Qa4 {[%clk 1:00:39]} h5  {[%clk 0:21:36]} 17. Rad1 {[%clk 0:50:41]} Bg4 {[%clk 0:17:41]} 18. Qc2  {[%clk 0:48:42]} Rab8 {[%clk 0:16:25]} 19. h3 {[%clk 0:46:29]} Bc8  {[%clk 0:13:56]} 20. f4 {[%clk 0:41:14]} exd4 {[%clk 0:13:10]} 21. exd4  {[%clk 0:41:37]} Bf5 {[%clk 0:13:16]} 22. Qd2 {[%clk 0:40:59]} h4  {[%clk 0:12:00]} 23. Bf3 {[%clk 0:40:15]} Be4 {[%clk 0:10:26]} 24. Rde1  {[%clk 0:36:53]} Bxf3 {[%clk 0:09:37]} 25. Rxe8+ {[%clk 0:37:01]} Rxe8  {[%clk 0:09:59]} 26. Rxf3 {[%clk 0:37:27]} Ne4 {[%clk 0:07:57]} 27. Qe1  {[%clk 0:35:23]} Qf6 {[%clk 0:07:36]} 28. Nd3 {[%clk 0:33:08]} Re6  {[%clk 0:05:02]} 29. Re3 {[%clk 0:30:45]} Qh6 {[%clk 0:03:29]} 30. f5  {[%clk 0:26:44]} Rf6 {[%clk 0:02:08]} 31. Nf2 {[%clk 0:27:08]} Nxf2  {[%clk 0:01:39]} 32. Re8+ {[%clk 0:27:29]} Kh7 {[%clk 0:02:01]} 33. Qxf2  {[%clk 0:27:56]} Qc1+ {[%clk 0:00:40]} 34. Kh2 {[%clk 0:27:14]} Qg5  {[%clk 0:01:07]} 35. Re5 {[%clk 0:27:39]} Kh6 {[%clk 0:01:34]} 36. a4  {[%clk 0:21:20]} g6 {[%clk 0:01:22]} 37. b4 {[%clk 0:21:41]} axb4  {[%clk 0:00:45]} 38. cxb4 {[%clk 0:22:06]} Kg7 {[%clk 0:00:35]} 39. a5  {[%clk 0:21:55]} Rxf5 {[%clk 0:00:35]} 40. Rxf5 {[%clk 0:52:18]} gxf5  {[%clk 0:31:01]} 41. a6 {[%clk 0:52:13]} Qd8 {[%clk 0:29:01]} 42. Qxf5  {[%clk 0:51:58]} Qa8 {[%clk 0:28:40]} 43. Qg5+ {[%clk 0:48:22]} Kf8  {[%clk 0:28:06]} 44. b5 {[%clk 0:48:37]} Qb8+ {[%clk 0:26:22]} 45. Qe5  {[%clk 0:48:58]} 1-0

[Event "SUNWAY"]
[Date "2016.12.19"]
[Round "5.7"]
[White "Lauber, Arnd"]
[Black "Edouard, Romain"]
[Result "0-1"]
[WhiteElo "2421"]
[BlackElo "2611"]
[ECO "E47"]
[WhiteFed "GER"]
[BlackFed "FRA"]
[FCGameId "-1339144386"]
[TimeControl "5400+30"]

1. d4 Nf6 2. c4 e6 3. Nc3 Bb4 4. e3 O-O 5. Bd3 c5 6. Nf3 b6 7. O-O Bb7 8. Na4 d6  9. a3 Ba5 10. Rb1 Na6 11. b3 Ne4 12. Bb2 f5 13. d5 Qe8 14. Ba1 exd5 15. cxd5 b5  16. Qe2 Nc7 17. b4 bxa4 18. bxa5 Bxd5 19. Bc4 Qf7 20. Bxd5 Nxd5 21. Qc2 Rae8 22.  Nd2 Ndf6 23. a6 Qd5 24. Nc4 Qe6 25. f3 Ng5 26. Rfd1 d5 27. Ne5 Rc8 28. Qxa4 Nf7  29. Nxf7 Rxf7 30. Kh1 Nd7 31. Rb7 Nb6 32. Qf4 Re8 33. Rb1 Qxe3 34. Qxe3 Rxe3 35.  Rb8+ Rf8 36. Rb7 Rfe8 37. Rxg7+ Kf8 38. Rf1 Re1 39. Kg1 Rxa1 40. Rxa7 Rxf1+ 41.  Kxf1 Re7 42. Rb7 Rxb7 43. axb7 Nd7 44. g4 fxg4 45. fxg4 Ke7 46. a4 Kd6 0-1

[Event "SUNWAY"]
[Date "2016.12.19"]
[Round "5.8"]
[White "Vocaturo, Daniele"]
[Black "Satyapragyan, Swayangsu"]
[Result "1-0"]
[WhiteElo "2606"]
[BlackElo "2462"]
[ECO "C55"]
[WhiteFed "ITA"]
[BlackFed "IND"]
[FCGameId "-1568861231"]
[TimeControl "5400+30"]

1. e4 {[%clk 1:30:57]} e5 {[%clk 1:29:30]} 2. Nf3 {[%clk 1:30:53]} Nc6  {[%clk 1:28:34]} 3. Bc4 {[%clk 1:30:47]} Nf6 {[%clk 1:28:58]} 4. d3  {[%clk 1:30:39]} Be7 {[%clk 1:29:22]} 5. O-O {[%clk 1:30:20]} O-O  {[%clk 1:29:48]} 6. Re1 {[%clk 1:29:50]} d6 {[%clk 1:30:14]} 7. a4  {[%clk 1:29:45]} Na5 {[%clk 1:30:38]} 8. Ba2 {[%clk 1:29:44]} c5  {[%clk 1:31:03]} 9. Na3 {[%clk 1:28:52]} Nc6 {[%clk 1:30:48]} 10. Bd2  {[%clk 1:28:30]} h6 {[%clk 1:18:38]} 11. c3 {[%clk 1:28:06]} a6 {[%clk 1:17:18]}  12. h3 {[%clk 1:27:45]} Rb8 {[%clk 1:15:01]} 13. Nc4 {[%clk 1:27:26]} Be6  {[%clk 1:07:52]} 14. b4 {[%clk 1:25:05]} cxb4 {[%clk 1:05:27]} 15. cxb4  {[%clk 1:25:28]} b5 {[%clk 1:05:48]} 16. axb5 {[%clk 1:23:19]} axb5  {[%clk 1:05:10]} 17. Na5 {[%clk 1:23:32]} Bd7 {[%clk 1:03:06]} 18. Bb3  {[%clk 1:19:08]} Rc8 {[%clk 0:58:51]} 19. Qb1 {[%clk 1:14:49]} Qb6  {[%clk 0:58:10]} 20. Qb2 {[%clk 1:09:36]} Qb8 {[%clk 0:52:29]} 21. Nxc6  {[%clk 1:06:34]} Bxc6 {[%clk 0:52:22]} 22. Nh4 {[%clk 1:06:32]} d5  {[%clk 0:43:58]} 23. Nf5 {[%clk 1:01:31]} Rfe8 {[%clk 0:43:32]} 24. exd5  {[%clk 0:58:07]} Nxd5 {[%clk 0:34:27]} 25. Qxe5 {[%clk 0:56:02]} Bf8  {[%clk 0:27:11]} 26. Qd4 {[%clk 0:52:55]} Rxe1+ {[%clk 0:25:07]} 27. Rxe1  {[%clk 0:53:18]} Rd8 {[%clk 0:25:24]} 28. Qg4 {[%clk 0:50:28]} Kh8 29. Nxh6  {[%clk 0:38:52]} gxh6 {[%clk 0:24:03]} 30. Bxd5 Rxd5 {[%clk 0:21:33]} 31. Bc3+  {[%clk 0:39:36]} Kh7 {[%clk 0:21:29]} 32. Re7 {[%clk 0:39:55]} Rg5  {[%clk 0:19:06]} 33. Rxf7+ {[%clk 0:40:18]} Kg8 {[%clk 0:19:27]} 34. Qe6  {[%clk 0:40:26]} Qh2+ {[%clk 0:18:54]} 35. Kf1 {[%clk 0:40:27]} 1-0

[Event "SUNWAY"]
[Date "2016.12.19"]
[Round "5.9"]
[White "Iniyan, P"]
[Black "Zubov, Alexander"]
[Result "0-1"]
[WhiteElo "2363"]
[BlackElo "2606"]
[ECO "E36"]
[WhiteFed "IND"]
[BlackFed "UKR"]
[FCGameId "-1668729528"]
[TimeControl "5400+30"]

1. d4 Nf6 2. c4 e6 3. Nc3 Bb4 4. Qc2 d5 5. a3 Bxc3+ 6. Qxc3 c5 7. dxc5 d4 8. Qc2  e5 9. e4 a5 10. f4 Nc6 11. Nf3 Nd7 12. fxe5 O-O 13. Bg5 Qc7 14. O-O-O Nxc5 15.  Bh4 Bg4 16. Bg3 Qb6 17. h3 Bh5 18. Bf2 Rad8 19. g4 Bg6 20. Bd3 f6 21. Bg3 fxe5  22. Rhf1 Rde8 23. Nh4 Rxf1 24. Rxf1 a4 25. Nxg6 hxg6 26. Kb1 Qb3 27. Qxb3 axb3  28. Rf3 Rf8 29. Be2 d3 30. Bd1 Rxf3 31. Bxf3 d2 32. Bf2 Nxe4 33. Be3 Nd4 34. Bd1  Kf7 35. c5 Ke7 36. h4 Kd7 37. a4 Kc6 38. g5 Nf5 39. Bg1 Nxc5 40. a5 e4 41. h5  gxh5 42. Bxh5 e3 43. Bd1 g6 0-1

[Event "SUNWAY"]
[Date "2016.12.19"]
[Round "5.10"]
[White "Minko, Vladimir"]
[Black "Vorobiov, Evgeny E."]
[Result "1/2-1/2"]
[WhiteElo "2429"]
[BlackElo "2583"]
[ECO "D71"]
[WhiteFed "RUS"]
[BlackFed "RUS"]
[FCGameId "455729359"]
[TimeControl "5400+30"]

1. d4 {[%clk 1:17:02]} Nf6 {[%clk 1:30:55]} 2. c4 {[%clk 1:17:25]} g6  {[%clk 1:31:10]} 3. g3 {[%clk 1:17:32]} c5 {[%clk 1:31:23]} 4. Nf3  {[%clk 1:17:45]} Bg7 {[%clk 1:31:10]} 5. Bg2 {[%clk 1:18:07]} cxd4  {[%clk 1:31:11]} 6. Nxd4 {[%clk 1:18:28]} Nc6 {[%clk 1:31:02]} 7. O-O  {[%clk 1:17:42]} O-O {[%clk 1:28:44]} 8. Nc3 {[%clk 1:14:53]} Nxd4  {[%clk 1:28:44]} 9. Qxd4 {[%clk 1:15:15]} d6 {[%clk 1:29:12]} 10. Rd1  {[%clk 1:09:35]} Be6 {[%clk 1:25:41]} 11. Qd3 {[%clk 1:00:45]} Rc8  {[%clk 1:20:17]} 12. b3 {[%clk 0:47:48]} Bf5 {[%clk 1:17:25]} 13. Qd2  {[%clk 0:45:28]} Ne4 {[%clk 0:50:46]} 14. Bxe4 {[%clk 0:45:20]} Bxe4  {[%clk 0:51:11]} 15. Bb2 {[%clk 0:44:16]} Bc6 {[%clk 0:50:43]} 16. Nd5  {[%clk 0:43:31]} Bxb2 {[%clk 0:47:38]} 1/2-1/2